Cogmind - Beta 13 @@@ ROGUE MODE // 2024.05.11 @ 15:57:28 Player: Lunace Result: Destroyed by Y-54 Guardian with Flak Gun Performance ------------- Evolutions (4) 2000 Regions Visited (11) 2200 Robots Destroyed (118) 590 Value Destroyed (7506) 7506 Prototype IDs (26) 520 Alien Tech Used (0) 0 Bonus (4376) 4376 TOTAL SCORE: 17192 Bonus ------- High Alert Combat Kills 2458 Follower Combat Kills 1062 Entered Garrisons 600 Used RIF Installer 1000 Aligned with FarCom 300 Friendly Fire -1044 Cogmind --------- Core Integrity 0/850 Matter 46/300 Energy 61/100 System Corruption 9% Temperature Cool (18) Movement Hovering (56) Location -6/Factory Parts ------- > --- POWER (1) -------- (None) > --- PROPULSION (4) --- Gravmag Array Gravmag Array > --- UTILITY (7) ------ Terrain Scan Processor Improved Terrain Scan Processor ECM Suite Improved Hacking Suite Relay Coupler [NC] (31) > --- WEAPON (3) ------- (None) > --- INVENTORY (5) ---- Gravmag Array Relay Coupler [NC] (31) Relay Coupler [Heavy] (14) Micro-nuke Launcher Peak State ------------ > --- POWER ------------ Light Deuterium Engine > --- PROPULSION ------- Improved Heavy Treads Gravmag Array > --- UTILITY ---------- Large Storage Unit Improved Sensor Array Improved Signal Interpreter Improved Armor Integrity Analyzer Improved Transmission Jammer Improved Remote Shield Relay Coupler [NC] > --- WEAPON ----------- Micro-nuke Launcher Improved Remote Datajack Powered Hammer > --- INVENTORY -------- Gravmag System Improved Antigrav System Improved Signal Interpreter Improved Terrain Scanner Terrain Scan Processor Graphene Brace Relay Coupler [NC] Relay Coupler [NC] Relay Coupler [NC] Relay Coupler [NC] Relay Coupler [Heavy] Latent Energy Streamer [Rating: 76] Favorites ----------- Power Ion Engine Engine Ion Engine Power Core Neutrino Core Propulsion Light Treads Treads Light Treads Hover Unit Gravmag Array Utility Large Storage Unit Device Improved Sensor Array Storage Large Storage Unit Processor Improved Signal Interpreter Hackware Relay Coupler [NC] Protection Light Armor Plating Weapon YOLO Cannon Energy Gun Improved Medium Laser Energy Cannon YOLO Cannon Ballistic Gun AWS/Gauss Ballistic Cannon Enhanced Gauss Cannon Launcher Micro-nuke Launcher Special Weapon Improved Remote Datajack Impact Weapon Powered Hammer Slashing Weapon Scythe Build | -11 -10 -10 -10 -9 -8 -8 -7 -7 -7 -7 -6 ------- Run | Yrd Mat Min Exi Min Mat Gar Fac Gar Fac Gar Fac Slots Evolved 8 | . . . . . 4 . 2 . . . 2 Power . | . . . . . . . . . . . . Propulsion 2 | . . . . . 1 . 1 . . . . Utility 5 | . . . . . 2 . 1 . . . 2 Weapon 1 | . . . . . 1 . . . . . . Parts Attached 126 | 7 8 . 1 2 . 32 6 18 6 19 27 Power 11 | 1 . . . . . 5 . 1 . 2 2 Engine 7 | 1 . . . . . 4 . . . 1 1 Core 4 | . . . . . . 1 . 1 . 1 1 Reactor . | . . . . . . . . . . . . Propulsion 31 | 2 2 . . . . 5 2 4 1 4 11 Treads 22 | 2 2 . . . . 5 2 4 1 4 2 Leg . | . . . . . . . . . . . . Wheel . | . . . . . . . . . . . . Hover 9 | . . . . . . . . . . . 9 Flight . | . . . . . . . . . . . . Utility 52 | 2 3 . . 2 . 11 3 8 3 8 12 Device 17 | 1 1 . . 1 . 1 1 1 1 4 6 Storage 3 | 1 1 . . . . . . . . 1 . Processor 5 | . . . . . . . 1 . 1 1 2 Hackware 7 | . . . . . . . 1 1 1 . 4 Protection 20 | . 1 . . 1 . 10 . 6 . 2 . Artifact . | . . . . . . . . . . . . Weapon 32 | 2 3 . 1 . . 11 1 5 2 5 2 Energy Gun 4 | . 2 . . . . 2 . . . . . Energy Cannon 4 | . . . . . . 4 . . . . . Ballistic Gun 7 | 2 1 . 1 . . 3 . . . . . Ballistic Cannon 3 | . . . . . . . . . . 3 . Launcher 2 | . . . . . . . . . . 1 1 Special Weapon 5 | . . . . . . . 1 2 1 . 1 Impact Weapon 6 | . . . . . . 1 . 3 1 1 . Slashing Weapon 1 | . . . . . . 1 . . . . . Piercing Weapon . | . . . . . . . . . . . . Special Melee Weapon . | . . . . . . . . . . . . Unidentified Prototypes 1 | . . . . . . . . . . . 1 Parts Lost 29 | . . . . . . . . 3 . 13 13 Power 4 | . . . . . . . . 1 . 1 2 Propulsion 10 | . . . . . . . . 2 . 4 4 Utility 9 | . . . . . . . . . . 4 5 Weapon 6 | . . . . . . . . . . 4 2 Highest Loss Streak 6 | . . . . . . . . 1 . 6 6 To Critical Strikes 1 | . . . . . . . . . . . 1 Average Slot Usage (%) 84 | . 99 100 91 85 54 88 84 81 83 75 65 Engine 6 | . 14 14 14 14 9 8 . . . . 4 Core 2 | . . . . . . . 7 6 7 4 . Treads 22 | . 28 28 28 28 18 26 23 21 23 19 3 Device 5 | . 4 14 14 8 . . 7 4 5 1 15 Storage 9 | . 14 14 14 14 9 9 7 7 7 6 4 Processor 4 | . . . . . . . 7 7 13 14 11 Hackware 2 | . . . . . . . 7 7 7 3 5 Protection 11 | . 9 . . 5 9 26 7 10 2 5 . Energy Gun 2 | . 4 28 13 . . 1 . . . . . Energy Cannon 3 | . . . . . . 5 7 7 7 1 . Ballistic Gun 5 | . 22 . 6 14 9 6 . . . . . Impact Weapon 2 | . . . . . . 2 . 5 2 6 4 Naked Turns . | . . . . . . . . . . . . Heaviest Build 68 | 14 34 32 36 38 38 64 60 68 60 49 53 Greatest Support 117 | 40 40 40 40 40 40 90 117 117 117 117 75 Greatest Overweight (x) 10 | . . . . . . 1 . . . 10 2 Average Overweight (x) . | . . . . . . . . . . . . Largest Inventory Capacity 15 | 8 15 15 15 15 15 15 15 15 15 15 15 Average Capacity 14 | 7 11 15 15 15 15 15 15 15 15 14 12 Most Carried 15 | 4 14 14 14 13 14 15 15 15 15 15 14 Average Carried 12 | 2 8 13 13 13 13 13 12 14 14 12 10 Final Capacity 15 | 8 15 15 15 15 15 15 15 15 15 15 5 Final Carried 15 | 4 13 14 13 13 14 15 13 15 15 14 5 Class Distribution -------------------- 37% | Bothacker-Mutant 32% | Mutant 11% | Scavenger-Tank 7% | Bothacker-Skirmisher 6% | Scavenger-Mutant Dominant Class ---------------- Mutant | -10/Materials Mutant | -10/Mines Mutant | -10/Exiles Mutant | -9/Mines Mutant | -8/Materials Scavenger-Tank | -8/Garrison Bothacker-Skirmisher | -7/Factory Bothacker-Mutant | -7/Garrison Bothacker-Skirmisher | -7/Factory Bothacker-Mutant | -7/Garrison Bothacker-Mutant | -6/Factory Resources | -11 -10 -10 -10 -9 -8 -8 -7 -7 -7 -7 -6 ----------- Run | Yrd Mat Min Exi Min Mat Gar Fac Gar Fac Gar Fac Matter Collected 2113 | 215 335 60 . 30 . 362 . 437 113 370 191 Remotely . | . . . . . . . . . . . . Salvage Created 4324 | 22 463 81 . 131 . 1190 . 1501 63 731 142 Parts 223 | 5 30 4 . 11 . 67 . 58 3 35 10 Haulers Intercepted 1 | . 1 . . . . . . . . . . Recyclers Shooed 2 | . 2 . . . . . . . . . . Parts Field Recycled . | . . . . . . . . . . . . Retrieved Matter . | . . . . . . . . . . . . Parts Self-Destructed . | . . . . . . . . . . . . Prevented . | . . . . . . . . . . . . Kills | -11 -10 -10 -10 -9 -8 -8 -7 -7 -7 -7 -6 ------- Run | Yrd Mat Min Exi Min Mat Gar Fac Gar Fac Gar Fac Combat Hostiles Destroyed 101 | . 9 . . 5 . 22 . 38 1 24 2 Melee 6 | . . . . . . 1 . 3 1 . 1 Guns 30 | . 9 . . 5 . 16 . . . . . Cannons 13 | . . . . . . 1 . 9 . 3 . AOE 41 | . . . . . . 3 . 18 . 19 1 Classes Destroyed 17 | 1 5 1 . . . 5 . 3 . 2 . Worker 1 | . . 1 . . . . . . . . . Builder 4 | . 1 . . . . . . . . . 3 Tunneler 2 | 1 . . . . . . . . . . 1 Hauler 1 | . 1 . . . . . . . . . . Recycler 2 | . 1 1 . . . . . . . . . Watcher 1 | . . . . . . 1 . . . . . Swarmer 35 | . 3 . . 3 . 5 . 13 . 11 . Cutter 2 | . . . . . . . . . . 2 . Saboteur 2 | . . . . . . . . 2 . . . Grunt 36 | . 6 . . 2 . 9 . 12 . 7 . Brawler 2 | . . . . . . 1 . 1 . . . Duelist 3 | . . . . . . . . 2 . 1 . Sentry 18 | . . . . . . 8 . 7 1 2 . Specialist 1 | . . . . . . 1 . . . . . Hunter 1 | . . . . . . 1 . . . . . Programmer 5 | . . . . . . . . 3 . . 2 Behemoth 1 | . . . . . . . . . . 1 . Thug 1 | . . . . . . 1 . . . . . Best Kill Streak 11 | 1 3 2 . 3 . 6 . 11 1 8 2 Combat Bots Only 11 | . 3 . . 3 . 6 . 11 1 8 1 Max Kills in Single Turn 4 | 1 1 1 . 1 . 4 . 3 1 3 2 Gunslinging . | . . . . . . . . . . . . Exploded 3 | . . . . . . 2 . 3 . 3 1 Melee 1 | . . . . . . 1 . 1 1 . 1 Uniques/NPCs Destroyed . | . . . . . . . . . . . . Combat | -11 -10 -10 -10 -9 -8 -8 -7 -7 -7 -7 -6 -------- Run | Yrd Mat Min Exi Min Mat Gar Fac Gar Fac Gar Fac Hostile Shots Fired 746 | . 40 . . 8 . 72 . 204 36 245 141 Missed 234 | . 8 . . 3 . 23 . 64 12 73 51 Damage Taken 8145 | . 301 . . 46 . 809 . 1870 228 2708 2183 Core 1649 | . 67 . . 10 . 56 . 71 45 549 851 Absorbed by Shields 35 | . . . . . . . . . . . 35 Reduced by Siege Mode 60 | . . . . . . . . . . 60 . Ignored by Resistances 51 | . . . . . . 51 . . . . . Regen/Repaired (Parts) 384 | . 63 . . . . . . . . . 321 Core Remaining (%) 65 | 100 . . . 69 . 89 . . . 5 . Volleys Fired 190 | 7 43 2 . . . 22 2 68 1 41 4 Largest 2 | 2 2 2 . . . 1 1 1 1 2 1 Hottest 114 | 40 112 112 . . . 100 7 100 7 114 7 Shots Fired 355 | 14 86 4 . 12 . 106 2 68 1 58 4 Gun 212 | 14 86 4 . 12 . 96 . . . . . Cannon 93 | . . . . . . 10 . 39 . 44 . Launcher 14 | . . . . . . . . . . 14 . Special 36 | . . . . . . . 2 29 1 . 4 Kinetic 229 | 14 80 . . 12 . 86 . . . 37 . Thermal 75 | . 6 4 . . . 19 . 39 . 7 . Explosive 14 | . . . . . . . . . . 14 . Electromagnetic 1 | . . . . . . 1 . . . . . Robot Hit Streak 24 | 2 9 3 . 5 . 21 1 24 5 9 6 Robot Miss Streak 3 | 3 3 1 . 2 . 2 3 1 . 3 . Penetration Max . | . . . . . . . . . . . . Secondary Targets 2 | . 2 . . . . . . . . . . Max Gunslinging Chain 1 | . 1 . . . . . . . . . . Autonomous 97 | . . . . 12 . 85 . . . . . Shots Hit Robots 299 | 5 55 3 . 8 . 83 1 69 3 60 12 Core Hits 145 | 2 24 2 . 5 . 37 . 35 1 36 3 Critical Kills 9 | . . . . . . 1 . 7 1 . . Critical Parts Destroyed 13 | . . . . . . 3 . 4 . 4 2 Critical Strikes 24 | . . . . . . 4 . 11 1 6 2 Meltdown 6 | . . . . . . 1 . 5 . . . Destroy 3 | . . . . . . 3 . . . . . Blast 2 | . . . . . . . . . . 2 . Smash 13 | . . . . . . . . 6 1 4 2 Melee Attacks 127 | . . . . . . 36 . 36 4 36 15 Impact 120 | . . . . . . 29 . 36 4 36 15 Slashing 7 | . . . . . . 7 . . . . . Piercing . | . . . . . . . . . . . . Sneak Attacks 4 | . . . . . . . . . . . 4 Combat Hostiles . | . . . . . . . . . . . . Follow-up Attacks . | . . . . . . . . . . . . Damage Inflicted 16934 | 65 624 51 . 201 . 3500 . 6736 69 4968 720 Guns 2839 | 65 598 51 . 201 . 1924 . . . . . Cannons 4129 | . . . . . . 384 . 2571 . 1174 . Explosions 6208 | . . . . . . 793 . 2978 . 2235 202 Melee 3702 | . . . . . . 393 . 1187 69 1559 494 Ramming 56 | . 26 . . . . 6 . . . . 24 Kinetic 3536 | 65 531 . . 201 . 1924 . . . 815 . Thermal 8271 | . 67 51 . . . 1177 . 5549 . 1225 202 Explosive 1369 | . . . . . . . . . . 1369 . Electromagnetic . | . . . . . . . . . . . . Impact 3611 | . . . . . . 302 . 1187 69 1559 494 Slashing 91 | . . . . . . 91 . . . . . Piercing . | . . . . . . . . . . . . Highest Corruption 9 | . . . . . . 2 . 1 1 5 9 Average Corruption 1 | . . . . . . 2 . 1 1 2 3 Corruption Purged . | . . . . . . . . . . . . Corruption Blocked . | . . . . . . . . . . . . Effects 68 | . . . . . . 27 . 14 4 15 8 Message Errors 25 | . . . . . . 10 . 4 2 6 3 Matter Fused 14 | . . . . . . 7 . 3 2 1 1 Heat Flow Errors 7 | . . . . . . 1 . 2 . 2 2 Energy Discharges 6 | . . . . . . 3 . 2 . 1 . Parts Rejected 1 | . . . . . . . . . . . 1 Data Loss (minor) 10 | . . . . . . 4 . 1 . 4 1 Data Loss (major) 3 | . . . . . . 2 . 1 . . . Alerts 2 | . . . . . . . . 1 . 1 . Overload Shots . | . . . . . . . . . . . . Overflow Damage 2129 | . 1 . . . . 162 . 1219 . 482 265 Projectiles 869 | . . . . . . 100 . 670 . 99 . Explosions 347 | . . . . . . 62 . 190 . 58 37 Melee 913 | . 1 . . . . . . 359 . 325 228 Knockbacks 9 | . . . . . . 2 . 2 . 1 4 Impact 8 | . . . . . . 2 . 1 . 1 4 Kinetic . | . . . . . . . . . . . . Secondary 1 | . . . . . . . . 1 . . . Self-Inflicted Damage 898 | . . . . . . 131 . 382 . 92 293 Shots 14 | . . . . . . 2 . 6 . 2 4 Rammed 14 | . 3 . . . . 2 . . . . 9 Targets Rammed 14 | . 3 . . . . 2 . . . . 9 Kicked . | . . . . . . . . . . . . Crushed . | . . . . . . . . . . . . Highest Temperature 399 | . 27 9 . . . 152 . 213 . 399 180 Average Temperature 55 | . 8 6 . . . 37 . 47 . 145 62 Received Heat Transfer 1321 | . 81 . . . . 234 . 339 54 423 190 Effects 1 | . . . . . . . . . . 1 . Energy Bleed 1 | . . . . . . . . . . 1 . Siege Activations 1 | . . . . . . . . . . 1 . Total Turns 12 | . . . . . . . . . . 12 . Longest Duration 12 | . . . . . . . . . . 12 . Robots Corrupted . | . . . . . . . . . . . . Combat Hostiles . | . . . . . . . . . . . . Parts Fried 5 | . . . . . . . . 2 . . 3 Impact Corruptions 29 | . 1 . . . . . . 12 . 8 8 Robots Melted 6 | . . . . . . 1 . 5 . . . Combat Hostiles 6 | . . . . . . 1 . 5 . . . Parts Melted 11 | . . . . . . 2 . 8 . 1 . Heat Transferred 7759 | . 148 111 . . . 1240 . 4880 . 1280 100 Parts Sabotaged . | . . . . . . . . . . . . Parts Stolen . | . . . . . . . . . . . . Parts Stripped . | . . . . . . . . . . . . Power Chain Reactions . | . . . . . . . . . . . . Latent Energy Used 70 | . . . . . . 70 . . . . . LE Corruption 2 | . . . . . . 2 . . . . . Alert | -11 -10 -10 -10 -9 -8 -8 -7 -7 -7 -7 -6 ------- Run | Yrd Mat Min Exi Min Mat Gar Fac Gar Fac Gar Fac Peak Influence 2668 | 5 200 10 . 269 26 1818 954 2668 1525 2007 1355 Initial 1400 | . 3 . . . 26 16 954 667 1400 1067 1022 Average 981 | 2 74 5 . 137 26 793 954 1723 1416 1674 1136 Maximum Alert Level 5 | . 1 . . 1 . 5 3 5 4 5 4 Low Security (%) 28 | 100 92 100 . 89 100 19 . . . . . Level 1 5 | . 7 . . 10 . 12 . . . . . Level 2 6 | . . . . . . 19 . 6 . . . Level 3 13 | . . . . . . 12 100 18 . 3 51 Level 4 25 | . . . . . . 27 . 24 100 36 48 Level 5 20 | . . . . . . 8 . 50 . 60 . High Security . | . . . . . . . . . . . . Max Security . | . . . . . . . . . . . . Squads Dispatched 7 | . 1 . . . . . . . 3 . 3 Investigation . | . . . . . . . . . . . . Extermination 2 | . . . . . . . . . 1 . 1 Reinforcement 1 | . 1 . . . . . . . . . . Assault 2 | . . . . . . . . . . . 2 Garrison 2 | . . . . . . . . . 2 . . Intercept . | . . . . . . . . . . . . Searches Triggered . | . . . . . . . . . . . . Construction Impeded . | . . . . . . . . . . . . Haulers Reinforced . | . . . . . . . . . . . . Active Scanning Responses . | . . . . . . . . . . . . Cargo Convoy Interrupts . | . . . . . . . . . . . . Stealth | -11 -10 -10 -10 -9 -8 -8 -7 -7 -7 -7 -6 --------- Run | Yrd Mat Min Exi Min Mat Gar Fac Gar Fac Gar Fac Distress Signals 1 | . . . . . . . . . . . 1 Communications Jammed 20 | . . . . . . . . . . . 20 Distress Signals 20 | . . . . . . . . . . . 20 Times Spotted 172 | . 13 . . 4 . 40 . 42 5 34 34 Peak Tracking Total 14 | . 4 . . 3 . 4 . 6 1 7 14 Tactical Retreats 10 | . . . . . . 1 . 1 . 3 5 Traps | -11 -10 -10 -10 -9 -8 -8 -7 -7 -7 -7 -6 ------- Run | Yrd Mat Min Exi Min Mat Gar Fac Gar Fac Gar Fac Traps Triggered 12 | . . . . . . 6 . 3 . 1 2 Indirectly . | . . . . . . . . . . . . Trap Hack Attempts . | . . . . . . . . . . . . Triggered . | . . . . . . . . . . . . Disarmed . | . . . . . . . . . . . . Reprogrammed . | . . . . . . . . . . . . Reused . | . . . . . . . . . . . . Traps Extracted . | . . . . . . . . . . . . Installed 1 | . . . . 1 . . . . . . . Triggered . | . . . . . . . . . . . . Machines | -11 -10 -10 -10 -9 -8 -8 -7 -7 -7 -7 -6 ---------- Run | Yrd Mat Min Exi Min Mat Gar Fac Gar Fac Gar Fac Machines Disabled 46 | . . . . 6 . 8 . 18 . 7 7 Max in Single Turn 6 | . . . . 6 . 1 . 2 . 2 5 Garrison Access 1 | . . . . . . . . . . . 1 Garrison Relay 13 | . . . . . . 6 . 6 . 1 . Phase Generator 2 | . . . . . . . . 1 . 1 . Machines Repaired . | . . . . . . . . . . . . Machines Dismantled . | . . . . . . . . . . . . Machines Sabotaged . | . . . . . . . . . . . . Overloaded Fab Kills . | . . . . . . . . . . . . Hacking | -11 -10 -10 -10 -9 -8 -8 -7 -7 -7 -7 -6 --------- Run | Yrd Mat Min Exi Min Mat Gar Fac Gar Fac Gar Fac Machines Accessed 21 | . 5 . 2 1 1 3 1 1 2 1 4 Terminals 12 | . 3 . . 1 . 3 . 1 1 1 2 Fabricators . | . . . . . . . . . . . . Repair Stations 2 | . 1 . . . . . . . . . 1 Recycling Units 1 | . 1 . . . . . . . . . . Scanalyzers . | . . . . . . . . . . . . Garrison Access 4 | . . . . . 1 . 1 . 1 . 1 Total Hacks 48 | . 15 . 2 2 2 9 2 1 3 2 10 Successful 24 | . 9 . 2 1 1 3 2 1 2 1 2 Failed 24 | . 6 . . 1 1 6 . . 1 1 8 Catastrophic 4 | . 1 . . . . . . . . 1 2 Database Lockouts . | . . . . . . . . . . . . Manual 16 | . 5 . 1 1 . . . . 2 . 7 Terminals 31 | . 10 . . 2 . 9 . 1 2 2 5 Fabricators . | . . . . . . . . . . . . Repair Stations 5 | . 2 . . . . . . . . . 3 Recycling Units 3 | . 3 . . . . . . . . . . Scanalyzers . | . . . . . . . . . . . . Garrison Access 7 | . . . . . 2 . 2 . 1 . 2 Terminal Hacks 11 | . 2 . 2 1 . 3 . 1 . 1 1 Record 1 | . . . 1 . . . . . . . . Prototype ID Bank 1 | . 1 . . . . . . . . . . Open Door 1 | . . . . . . 1 . . . . . Level Access Points 1 | . . . . . . . . . . . 1 Emergency Access Points 3 | . . . . . . 1 . 1 . 1 . Locate Traps 1 | . 1 . . . . . . . . . . Zone Layout 1 | . . . . 1 . . . . . . . Security Stations 1 | . . . . . . 1 . . . . . Derelict Proto ID Bank 1 | . . . 1 . . . . . . . . Fabricator Hacks . | . . . . . . . . . . . . Repair Station Hacks 3 | . 2 . . . . . . . . . 1 Scan Component 2 | . 1 . . . . . . . . . 1 Repair 1 | . 1 . . . . . . . . . . Recycling Unit Hacks . | . . . . . . . . . . . . Scanalyzer . | . . . . . . . . . . . . Garrison Access Hacks 4 | . . . . . 1 . 2 . 1 . . Unlock Access 3 | . . . . . 1 . 1 . 1 . . Coupler Status 1 | . . . . . . . 1 . . . . Unauthorized Hacks 6 | . 5 . . . . . . . 1 . . Terminals 4 | . 3 . . . . . . . 1 . . Botnet 4 | . 3 . . . . . . . 1 . . Fabricators . | . . . . . . . . . . . . Repair Stations . | . . . . . . . . . . . . Recycling Units 2 | . 2 . . . . . . . . . . Monitor 1 | . 1 . . . . . . . . . . Recyclers 1 | . 1 . . . . . . . . . . Scanalyzers . | . . . . . . . . . . . . Garrison Access . | . . . . . . . . . . . . Data Cores Recovered . | . . . . . . . . . . . . Used . | . . . . . . . . . . . . Hacking Detections 14 | . 4 . . 1 . 2 1 . 1 1 4 Full Trace Events 1 | . . . . . . . . . . 1 . Feedback Events . | . . . . . . . . . . . . Feedback Blocked . | . . . . . . . . . . . . Robot Schematics Acquired . | . . . . . . . . . . . . Robots Built . | . . . . . . . . . . . . Authchips . | . . . . . . . . . . . . Time . | . . . . . . . . . . . . Total Robot Build Rating . | . . . . . . . . . . . . Part Schematics Acquired . | . . . . . . . . . . . . Parts Built . | . . . . . . . . . . . . Authchips . | . . . . . . . . . . . . Time . | . . . . . . . . . . . . Total Part Build Rating . | . . . . . . . . . . . . Parts Repaired 1 | . 1 . . . . . . . . . . Time 26 | . 26 . . . . . . . . . . Parts Recycled . | . . . . . . . . . . . . Recycled Matter . | . . . . . . . . . . . . Retrieved Matter . | . . . . . . . . . . . . Retrieved Components . | . . . . . . . . . . . . Parts Scanalyzed . | . . . . . . . . . . . . Part Schematics Acquired . | . . . . . . . . . . . . Parts Damaged . | . . . . . . . . . . . . Bothacking | -11 -10 -10 -10 -9 -8 -8 -7 -7 -7 -7 -6 ------------ Run | Yrd Mat Min Exi Min Mat Gar Fac Gar Fac Gar Fac Used RIF Installer 2 | . . . . . . 1 . 1 . . . Signal Jammer 1 | . . . . . . . . 1 . . . Robots Hacked 4 | . . . . . . . 1 . 1 . 2 Non-combat 4 | . . . . . . . 1 . 1 . 2 Combat . | . . . . . . . . . . . . Robot Hacks Applied 5 | . . . . . . . 1 . 1 . 3 drop_inventory 1 | . . . . . . . 1 . . . . map_route 1 | . . . . . . . . . . . 1 formatsys_low 1 | . . . . . . . . . . . 1 formatsys_high 2 | . . . . . . . . . 1 . 1 Relay Couplers Released 58 | . . . . . . 27 . 24 . 3 4 Machine Destruction 58 | . . . . . . 27 . 24 . 3 4 Attached 6 | . . . . . . . 1 1 1 . 3 Fabnet Peak Effective % . | . . . . . . . . . . . . Robots Rewired 19 | . . . . . . 10 . 9 . . . Allies Hacked . | . . . . . . . . . . . . Hacks Repelled . | . . . . . . . . . . . . Allies | -11 -10 -10 -10 -9 -8 -8 -7 -7 -7 -7 -6 -------- Run | Yrd Mat Min Exi Min Mat Gar Fac Gar Fac Gar Fac Total Allies 26 | . . 2 . 1 . 11 . 9 1 . 2 Largest Group 9 | . . 2 2 1 1 7 1 9 7 4 1 Highest-Rated Group 210 | . . 45 45 31 31 181 15 210 194 120 23 Highest-Rated Ally 40 | . . 31 31 31 31 40 15 32 32 32 23 Total Orders 2 | . . . . . . . . . . 1 1 STAY 1 | . . . . . . . . . . 1 . AID 1 | . . . . . . . . . . . 1 Ally Attacks 97 | . . 3 . . . 61 . 15 8 10 . Total Damage 2595 | . . 64 . . . 1409 . 472 336 314 . Kills 32 | . . . . . . 20 . 5 2 5 . Allies Corrupted . | . . . . . . . . . . . . Allies Melted . | . . . . . . . . . . . . Intel | -11 -10 -10 -10 -9 -8 -8 -7 -7 -7 -7 -6 ------- Run | Yrd Mat Min Exi Min Mat Gar Fac Gar Fac Gar Fac Robot Analysis Total . | . . . . . . . . . . . . Derelict Logs Recovered 1 | . . . . 1 . . . . . . . Drone Launches . | . . . . . . . . . . . . Drone Recoveries . | . . . . . . . . . . . . Exploration | -11 -10 -10 -10 -9 -8 -8 -7 -7 -7 -7 -6 ------------- Run | Yrd Mat Min Exi Min Mat Gar Fac Gar Fac Gar Fac Turns Passed 8653 | 116 850 301 364 795 16 2269 95 1795 306 1043 703 Spaces Moved 4652 | 44 404 168 224 482 9 1174 50 852 171 459 615 Core 107 | 2 . . . . . . . . . 39 66 Treads 4155 | 42 404 168 224 482 9 1174 50 852 171 420 159 Legs . | . . . . . . . . . . . . Wheels . | . . . . . . . . . . . . Hover 390 | . . . . . . . . . . . 390 Flight . | . . . . . . . . . . . . Fastest Speed 50 | 50 160 160 160 160 160 160 163 160 163 50 50 Average Speed 151 | 155 160 160 160 160 160 162 163 163 163 164 84 Slowest Speed 550 | 160 160 160 160 160 160 240 163 165 163 550 160 Overloaded Moves . | . . . . . . . . . . . . Propulsion Burnouts . | . . . . . . . . . . . . Robots Hopped . | . . . . . . . . . . . . Cave-ins Triggered 1 | . . . . . . . . . . 1 . Exploration Rate (%) 42 | 5 67 29 61 95 2 95 3 92 6 43 15 Regions Visited 11 Branch Regions 3 Pre-discovered Areas 1 | . . . 1 . . . . . . . . Known Exits Taken 3 | . . . . . 1 . 1 . 1 . . Unknown Exits Taken 5 | 1 1 1 1 1 . . . . . . . Scrap Searched 3 | . . . . 3 . . . . . . . Spaces Dug 33 | . . . . . . 4 . 24 1 1 3 Terrain Destroyed 829 | . . . . 54 . 90 . 506 1 146 32 Melee 5 | . . . . . . . . 1 1 . 3 Projectile 43 | . . . . 10 . 11 . 10 . 12 . AOE 781 | . . . . 44 . 79 . 495 . 134 29 Terrain Rammed . | . . . . . . . . . . . . Walls Destroyed . | . . . . . . . . . . . . Machines Disabled . | . . . . . . . . . . . . Actions | -11 -10 -10 -10 -9 -8 -8 -7 -7 -7 -7 -6 --------- Run | Yrd Mat Min Exi Min Mat Gar Fac Gar Fac Gar Fac Total 5692 | 76 529 196 232 505 10 1449 63 1058 192 608 774 Wait 366 | 15 54 26 . 21 . 72 . 63 2 35 78 Move 4644 | 43 403 167 223 481 9 1173 50 851 171 458 615 Hop . | . . . . . . . . . . . . Pick Up 66 | 4 10 1 2 . 1 18 2 6 2 13 7 Fast Attach 51 | 7 4 . 1 . . 9 1 7 1 9 12 Attach 36 | . . . . . . 10 3 . 2 6 15 Detach 14 | . 1 . . . . 7 . . 2 . 4 Swap 39 | . 4 . . 2 . 13 2 11 3 4 . Drop 82 | . 7 . 6 . . 31 3 10 4 6 15 Fire 190 | 7 43 2 . . . 22 2 68 1 41 4 Melee 127 | . . . . . . 36 . 36 4 36 15 Ram 7 | . . . . . . . . . . . 7 Kick . | . . . . . . . . . . . . Crush 7 | . 3 . . . . 2 . . . . 2 Escape Stasis . | . . . . . . . . . . . . Rewire 62 | . . . . . . 56 . 6 . . . Trap 1 | . . . . 1 . . . . . . . Miscellaneous . | . . . . . . . . . . . . Route ------- -11/Scrapyard -10/Materials (discovered 3 exits: [*Mat x2] / [*Min]) -10/Mines -10/Exiles -9/Mines -8/Materials -8/Garrison (discovered 3 exits: *Fac x3) -7/Factory (discovered 2 exits: Sto / Gar) -7/Garrison (discovered 3 exits: *Fac x3) -7/Factory (discovered 3 exits: *Fac / [*Low] / Gar) -7/Garrison -6/Factory (discovered 4 exits: *Fac x4) History --------- Turn | Location | Event 25 | -11/Scrapyard | Discovered new exit (range 16) 117 | -11/Scrapyard | Entered Materials 340 | -10/Materials | Build established: Mutant 407 | -10/Materials | Discovered new exit (range 13) 738 | -10/Materials | Repaired Assault Rifle 776 | -10/Materials | Discovered new exit (range 11) 941 | -10/Materials | Discovered new exit (range 12) 967 | -10/Materials | Entered Mines 1002 | -10/Mines | Assembled infested the area 1063 | -10/Mines | Met 8R-AWN 1261 | -10/Mines | Discovered new exit (range 5) 1268 | -10/Mines | Entered Exiles 1268 | -10/Exiles | Accompanied by 2 allies 1298 | -10/Exiles | Led the pair of lost Derelicts to a safe place 1307 | -10/Exiles | Welcomed by 8R-AWN 1332 | -10/Exiles | Met EX-HEX 1379 | -10/Exiles | Met EX-BIN 1398 | -10/Exiles | Aligned with FarCom system 1400 | -10/Exiles | Given EX-Vault access code 1436 | -10/Exiles | Opened EX-Vault 1453 | -10/Exiles | Found AWS/Gauss 1464 | -10/Exiles | Found YOLO Cannon 1469 | -10/Exiles | Found Latent Energy Streamer 1504 | -10/Exiles | Warned to stay clear of 0b10 Research branches 1547 | -10/Exiles | Met EX-DEC 1558 | -10/Exiles | Learned location of Zion (-6) 1616 | -10/Exiles | Discovered new exit (range 11) 1632 | -10/Exiles | Stole three prototypes: AWS/Gauss, Latent Energy Streamer, YOLO Cannon 1632 | -10/Exiles | Entered Mines 1690 | -9/Mines | Discovered new exit (range 8) 1745 | -9/Mines | Found a hidden stash of uninstalled traps 1963 | -9/Mines | Escorted by a lone wolf Derelict 2427 | -9/Mines | Entered Materials 2427 | -8/Materials | Accompanied by 1 ally 2427 | -8/Materials | Evolved 4 slots: Propulsion x1, Utility x2, Weapon x1 2443 | -8/Materials | Identified exit to Garrison 2443 | -8/Materials | Entered Garrison 2443 | -8/Garrison | Accompanied by 1 ally 2511 | -8/Garrison | Triggered checkpoint 2836 | -8/Garrison | Garrison Relay disabled 2891 | -8/Garrison | Garrison Relay disabled 2947 | -8/Garrison | Triggered checkpoint 3063 | -8/Garrison | Triggered checkpoint 3089 | -8/Garrison | Build established: Scavenger-Tank 3137 | -8/Garrison | Discovered new exit (range 10) 3177 | -8/Garrison | Triggered checkpoint 3193 | -8/Garrison | Triggered checkpoint 3206 | -8/Garrison | Garrison Relay disabled 3224 | -8/Garrison | Rescued a captive Derelict 3453 | -8/Garrison | Learned Factory security intel 3627 | -8/Garrison | Triggered checkpoint 3807 | -8/Garrison | Triggered checkpoint 3812 | -8/Garrison | Lost 4 allies 3836 | -8/Garrison | Discovered new exit (range 12) 3877 | -8/Garrison | Garrison Relay disabled 3941 | -8/Garrison | Installed Relay Interface Framework 4105 | -8/Garrison | Triggered checkpoint 4148 | -8/Garrison | Lost 4 allies 4191 | -8/Garrison | Discovered new exit (range 7) 4231 | -8/Garrison | Triggered checkpoint 4382 | -8/Garrison | Garrison Relay disabled 4408 | -8/Garrison | Build established: Scavenger-Mutant 4712 | -8/Garrison | Entered Factory 4712 | -7/Factory | Accompanied by 1 ally 4712 | -7/Factory | Evolved 2 slots: Propulsion x1, Utility x1 4713 | -7/Factory | Identified exit to Storage 4714 | -7/Factory | FarCom data flow suspended 4807 | -7/Factory | Identified exit to Garrison 4807 | -7/Factory | Entered Garrison 4807 | -7/Garrison | Accompanied by 1 ally 4840 | -7/Garrison | Expanded RIF knowledge: Signal Jamming 4921 | -7/Garrison | Phase Generator disabled 5098 | -7/Garrison | Build established: Bothacker-Mutant 5103 | -7/Garrison | Triggered checkpoint 5162 | -7/Garrison | Garrison Relay disabled 5217 | -7/Garrison | Triggered checkpoint 5280 | -7/Garrison | Triggered checkpoint 5309 | -7/Garrison | Destroyed 11 combat bots 5372 | -7/Garrison | Found Powered Armor 5375 | -7/Garrison | Found Powered Armor 5386 | -7/Garrison | Triggered checkpoint 5460 | -7/Garrison | Garrison Relay disabled 5541 | -7/Garrison | Discovered new exit (range 11) 5691 | -7/Garrison | Garrison Relay disabled 5740 | -7/Garrison | Triggered checkpoint 5787 | -7/Garrison | Triggered checkpoint 5823 | -7/Garrison | Discovered new exit (range 10) 5828 | -7/Garrison | Destroyed 11 combat bots 5923 | -7/Garrison | Garrison Relay disabled 6053 | -7/Garrison | Garrison Relay disabled 6340 | -7/Garrison | Discovered new exit (range 13) 6368 | -7/Garrison | Identified exit to Factory 6372 | -7/Garrison | Build established: Bothacker-Skirmisher 6441 | -7/Garrison | Triggered checkpoint 6480 | -7/Garrison | Garrison Relay disabled 6602 | -7/Garrison | Entered Factory 6602 | -7/Factory | Accompanied by 6 allies 6674 | -7/Factory | Discovered new exit (range 15) 6695 | -7/Factory | Identified exit to Factory 6888 | -7/Factory | Discovered new exit (range 14) 6891 | -7/Factory | Garrison activated, responded to threat 6898 | -7/Factory | Garrison activated, responded to threat 6908 | -7/Factory | Identified exit to Garrison 6908 | -7/Factory | Entered Garrison 6908 | -7/Garrison | Accompanied by 4 allies 6943 | -7/Garrison | Triggered checkpoint 6989 | -7/Garrison | Lost 3 allies 7056 | -7/Garrison | Garrison Relay disabled 7120 | -7/Garrison | Triggered checkpoint 7129 | -7/Garrison | Build established: Bothacker-Mutant 7322 | -7/Garrison | Phase Generator disabled 7498 | -7/Garrison | Destroyed 8 combat bots 7616 | -7/Garrison | Discovered exit to Factory (range 12) 7622 | -7/Garrison | Spotted B-75 Beast 7688 | -7/Garrison | Lost 6 parts (2n1u3w) 7713 | -7/Garrison | Core integrity fell below 50% 7725 | -7/Garrison | Crushed by falling debris 7734 | -7/Garrison | Core integrity fell below 20% 7780 | -7/Garrison | Destroyed B-75 Beast 7951 | -7/Garrison | Entered Factory 7951 | -6/Factory | Evolved 2 slots: Utility x2 8301 | -6/Factory | First assault squad dispatched 8494 | -6/Factory | Lost 6 parts (1p2n1u2w) 8516 | -6/Factory | Core integrity fell below 50% 8551 | -6/Factory | Core integrity fell below 20% 8557 | -6/Factory | Lost 6 parts (2n4u) 8641 | -6/Factory | Identified exit to Factory 8654 | -6/Factory | Destroyed by Y-54 Guardian with Flak Gun Last Messages --------------- 08641_ Connecting with Terminal... >>Access(Main) Found 4 level access points to Factory: (93,26) (180,180) (27,88) (175,10) Map updated. 08642_ W-25 Informer distress signal jammed. 08643_ System corrupted: Gravmag Array rejected. 08643_ Acquired Gravmag Array. 08643_ W-25 Informer distress signal jammed. 08650_ Lgt. Fission Core destroyed. 08651_ W-25 Informer distress signal jammed. 08653_ Acquired Imp. Terrain Scan Processor. 08653_ W-25 Informer distress signal jammed. Map ----- +----------------------------------------------------+ | ?????????????????????????????????????????????????? | | ?????????????????????????????????????????????????? | | ?????????????????????????????????????????????????? | | ?????????????????????????????????????????????????? | | ?????????????????????????????????????????????????? | | ?????????????????????????????????????????????????? | | ?????????????????????????????????????????????????? | | ?????????????????????????????????????????????????? | | ?????????????????????????????????????????????????? | | ?????????????????????????????????????????????????? | | ?????????????????????????????????????????????????# | | ????????????????????????????????????? ?????????# | | ?????????????????????????? ?????????# ?????????# | | ?????????????????????????" ?????????# ########## | | ????????????????????????"" ?????????# # * # | | ???????????????????????""" ?????????# # # | | ???????????????????????""" ""????#??# # # | | ??????????????????????? !#??# # # | | ??????????????????????"""" """" #??# # # | | ????????????????????# """" """" #??# # = # | | ????????????????????? """" """" #??# # # | | ???????????????????????""" """" ????# # # | | ????????????????????????? ??????# # # | | ???????????????????????####+####????# #######+## | | ?????????????????####### #???## ##????# #? | | ?????????? @ ##### #????# #? | | ?????????? ###### ## | | ?????????? < Y T | | ??????????? k t ######+## | | ??????????? ##### #??? | | ???????????? ####### #???###+###??#! """ | | ???????????? ???????### ###???? ???# """ | | ???????????? ????????????# R#????# "T" ?# """ | | ?????????????????????????# #????# """ ! # | | ?????????????????????????# w#????# # ] | | ?????????????????????????# #????################ | | ?????????????????????????# #???????????????????? | | ?????????????????????????# #???????????????????? | | ?????????????????????????+ +???????????????????? | | ?????????????????????????? #???????????????????? | | ??????????????????????????? ?????????????????????? | | ?????????????????????????????????????????????????? | | ?????????????????????????????????????????????????? | | ?????????????????????????????????????????????????? | | ?????????????????????????????????????????????????? | | ?????????????????????????????????????????????????? | | ?????????????????????????????????????????????????? | | ?????????????????????????????????????????????????? | | ?????????????????????????????????????????????????? | | ?????????????????????????????????????????????????? | +----------------------------------------------------+ Best States ------------- Heat Dissipation 45 Energy Generation 19 Energy Capacity 315 Matter Stores 300 Matter Capacity 300 Sight Range 16 Robot Scan Range 15 Terrain Scan Range 16 Terrain Scan Density 110 ECM Strength 1 Jamming Range 14 Armor Coverage 550 Resistance: TH 10 Evasion (%) 54 Armor Integrity Analysis 40 Recoil Reduction 4 Force Boost 30 Offensive Hacking 12 Relay Coupler Types 1 Relay Coupler Value 31 Item Schematics ----------------- None Robot Schematics ------------------ None Fabricated ------------ Nothing Alien Tech Used ----------------- None Achievements -------------- None Challenges ------------ None Game ------ Seed CouplerThermalRipper Manual? 0 Play Time 01:05:44 Cumulative 168.0 hours Start 2024.05.11 @ 14:48:44 End 2024.05.11 @ 15:57:28 Sessions 1 Manual Loads 0 Difficulty Rogue Special Mode None Game No. 163 Rogue 158 Adventurer 5 Explorer 0 Win Type - Total 3 Types 2/0/0/1/0/0/0/0/0 Lore% 53 Gallery% 72 Achievement% 55 Wizard Run 0 Options --------- Layout 1 ASCII 0 Keyboard 0 Movement Mouse Keybinds 0 Fullscreen 1 Font 24/Terminus Map View 50x35 Zoom Use 0% Tactical HUD 1 Map Filters NONE Filters NONE Steam 1 RUN: 320043e3-367c-44ce-893e-4bd8aafe4917